lending/lending_fUSD_20260306
["ID","MTS","AMOUNT","RATE_DAILY","PERIOD"]
[407753387,1772759438747,-152.0,0.00019458,21]
[407753388,1772759438756,-172.70211477,0.00019475,2]
[407753389,1772759438766,-961.58486559,0.00019494,2]
[407753390,1772759438775,-1724.865,0.000195,2]
[407753391,1772759438786,-175.938,0.000195,2]
[407753392,1772759438795,-160.85014312,0.00019531,2]
[407753393,1772759438805,-152.0,0.00019546,22]
[407753394,1772759438814,-1000.0,0.00019547,2]
[407753395,1772759438824,-997.16350561,0.00019549,2]
[407753396,1772759438833,-1000.0,0.00019568,2]
[407753397,1772759438843,-500.0,0.00019589,2]
[407753398,1772759438853,-500.0,0.00019589,2]
[407753399,1772759438862,-500.0,0.00019589,2]
[407753400,1772759438872,-500.0,0.00019589,2]
[407753401,1772759438881,-550.57696841,0.00019589,2]
[407753402,1772759438892,-152.0,0.00019634,23]
[407753403,1772759438902,-420.0,0.00019679,2]
[407753404,1772759438912,-160.0,0.0001968,2]
[407753405,1772759438923,-1000.0,0.000197,2]
[407753406,1772759438933,-152.0,0.00019722,24]
[407753407,1772759438942,-152.0,0.0001981,25]
[407753408,1772759438953,-1000.0,0.00019842,2]
[407753409,1772759438964,-152.0,0.00019898,26]
[407753410,1772759438974,-25000.0,0.000199,3]
[407753411,1772759438985,-160.85014312,0.000199,2]
[407753412,1772759438995,-234.871821,0.000199,2]
[407753413,1772759439006,-1540.0,0.000199,2]
[407753414,1772759439016,-500.0,0.00019973,2]
[407753415,1772759439025,-500.0,0.00019973,2]
[407753416,1772759439036,-500.0,0.00019973,2]
[407753417,1772759439046,-500.0,0.00019973,2]
[407753418,1772759439055,-500.0,0.00019973,2]
[407753419,1772759439065,-500.0,0.00019973,2]
[407753420,1772759439075,-500.0,0.00019973,2]
[407753421,1772759439084,-500.0,0.00019973,2]
[407753422,1772759439094,-500.0,0.00019973,2]
[407753423,1772759439107,-500.0,0.00019973,2]
[407753424,1772759439116,-500.0,0.00019973,2]
[407753425,1772759439126,-500.0,0.00019973,2]
[407753426,1772759439137,-500.0,0.00019973,2]
[407753427,1772759439148,-500.0,0.00019973,2]
[407753428,1772759439160,-386.84801962,0.00019973,2]
[407753429,1772759439171,-430.23020954,0.00019973,2]
[407753430,1772759439184,-500.0,0.00019973,2]
[407753431,1772759439194,-500.0,0.00019973,2]
[407753432,1772759439205,-364.38497598,0.00019973,2]
[407753433,1772759439215,-500.0,0.00019973,2]
[407753434,1772759439227,-500.0,0.00019973,2]
[407753435,1772759439236,-589.74451126,0.00019973,2]
[407753436,1772759439246,-500.0,0.00019973,2]
[407753437,1772759439257,-500.0,0.00019973,2]
[407753438,1772759439266,-500.0,0.00019973,2]
[407753439,1772759439276,-152.0,0.00019986,27]
[407753440,1772759439285,-1200.47389806,0.0001999,2]
[407753441,1772759439295,-187.21052835,0.0001999,2]
[407753442,1772759439304,-187.21052835,0.0001999,2]
[407753443,1772759439314,-151.0,0.00019997,2]
[407753444,1772759439324,-11435.5454176,0.00019997,2]
[407753445,1772759439333,-8058.2554162,0.00019999,2]
[407753446,1772759439344,-46969.5659115,0.00019999,2]
[407753447,1772759439355,-176.8309186,0.00019999,2]
[407753448,1772759439366,-1760.7733668,0.00019999,2]
[407753449,1772759439375,-1917870.12626632,0.0002,2]
[407753450,1772759439384,-132620.46341538,0.0002,2]
[407753451,1772759439395,-12977.54953408,0.0002,2]
[407753452,1772759439404,-4812.22438117,0.0002,2]
[407753453,1772759439414,-606567.03000506,0.0002,2]
[407753454,1772759439429,-981.56,0.0002,2]
[407753455,1772759439441,-9986.03979813,0.0002,2]
[407753456,1772759439453,-3015.00009,0.0002,2]
[407753457,1772759439464,-367.0,0.0002,2]
[407753458,1772759439475,-603.22941727,0.0002,2]
[407753473,1772759442485,-372.32615594,0.00019235,2]
[407753490,1772759445368,-3372.67384406,0.00019235,2]
[407753491,1772759445378,-21627.32615594,0.0002,2]
[407753498,1772759543367,500.0,0.00014,2]
[407753509,1772759757544,1090.7,0.00017,120]
[407753512,1772759840033,20000.0,0.0001629,2]
[407753513,1772759852571,20000.0,0.0001629,2]
[407753514,1772759927136,10000.0,0.000151,30]
[407753515,1772759941207,9957.24,0.000151,30]
[407753517,1772760444128,-166.66,0.00016376,2]
[407753518,1772760444149,-187.33891219,0.000167,2]
[407753519,1772760445139,-178.28108781,0.000167,2]
[407753520,1772760445161,-166.66,0.00016721,2]
[407753521,1772760445183,-250.0,0.00017002,2]
[407753522,1772760445204,-166.66,0.00017066,2]
[407753523,1772760445225,-1600.0,0.00017305,2]
[407753524,1772760445245,-166.66,0.00017411,2]
[407753525,1772760445265,-182.10230381,0.0001746,2]
[407753526,1772760445284,-152.0,0.0001752,3]
[407753527,1772760445304,-1724.865,0.00017678,2]
[407753528,1772760445325,-175.938,0.00017678,2]
[407753529,1772760445345,-152.0,0.00017728,4]
[407753530,1772760445365,-166.66,0.00017755,2]
[407753531,1772760445384,-152.0,0.00017936,5]
[407753532,1772760445404,-508.0,0.00017938,2]
[407753533,1772760445424,-440.15895969,0.00017939,2]
[407753538,1772760631576,-166.68,0.00017748,2]
[407753541,1772760631596,-297.02720362,0.00017939,2]
[407753545,1772760631650,-3328.66113669,0.00017939,2]
[407753546,1772760631660,-160.85014316,0.00017939,2]
[407753547,1772760631670,-269.76474236,0.00017939,2]
[407753548,1772760631679,-303.0,0.00017939,2]
[407753549,1772760631689,-300.0,0.00018013,2]
[407753550,1772760631698,-1200.0,0.00018013,2]
[407753551,1772760631707,-1871.98981135,0.00018014,2]
[407753552,1772760631716,-500.0,0.00018014,2]
[407753553,1772760631726,-500.0,0.00018028,2]
[407753554,1772760631735,-500.0,0.00018028,2]
[407753555,1772760631744,-200.0,0.00018028,2]
[407753556,1772760631753,-151.0,0.00018028,2]
[407753557,1772760631763,-151.0,0.00018028,2]
[407753558,1772760631772,-151.0,0.00018028,2]
[407753559,1772760631782,-151.0,0.00018028,2]
[407753560,1772760631791,-151.0,0.00018028,2]
[407753562,1772760631801,-500.0,0.00018028,2]
[407753564,1772760631810,-151.0,0.00018028,2]
[407753566,1772760631819,-500.0,0.00018028,2]
[407753568,1772760631828,-151.0,0.00018028,2]
[407753569,1772760631837,-500.0,0.00018028,2]
[407753570,1772760631847,-151.0,0.00018028,2]
[407753571,1772760631856,-500.0,0.00018028,2]
[407753572,1772760631865,-151.0,0.00018028,2]
[407753574,1772760631874,-500.0,0.00018028,2]
[407753575,1772760631883,-151.0,0.00018028,2]
[407753577,1772760631893,-500.0,0.00018028,2]
[407753579,1772760631902,-151.0,0.00018028,2]
[407753581,1772760631912,-500.0,0.00018028,2]
[407753583,1772760631921,-151.0,0.00018028,2]
[407753585,1772760631931,-500.0,0.00018028,2]
[407753587,1772760631940,-500.0,0.00018028,2]
[407753589,1772760631949,-500.0,0.00018028,2]
[407753592,1772760631960,-192.63294048,0.00018028,2]
[407753594,1772760631971,-500.0,0.00018028,2]
[407753596,1772760631981,-500.0,0.00018028,2]
[407753598,1772760631991,-500.0,0.00018028,2]
[407753600,1772760632002,-500.0,0.00018028,2]
[407753601,1772760632011,-500.0,0.00018028,2]
[407753602,1772760632021,-160.55109637,0.00018028,2]
[407753603,1772760632030,-151.0,0.00018028,2]
[407753604,1772760632040,-151.0,0.00018028,2]
[407753605,1772760632049,-151.0,0.00018028,2]
[407753606,1772760632059,-151.0,0.00018028,2]
[407753607,1772760632068,-151.0,0.00018028,2]
[407753608,1772760632078,-151.0,0.00018028,2]
[407753609,1772760632088,-151.0,0.00018028,2]
[407753610,1772760632098,-151.0,0.00018028,2]
[407753611,1772760632107,-151.0,0.00018028,2]
[407753612,1772760632116,-151.0,0.00018028,2]
[407753613,1772760632126,-151.0,0.00018028,2]
[407753614,1772760632136,-151.0,0.00018028,2]
[407753615,1772760632146,-188.92263895,0.00018029,2]
[407753616,1772760632156,-151.0,0.00018036,2]
[407753617,1772760632165,-151.0,0.00018036,2]
[407753618,1772760632175,-9999.99,0.00018037,2]
[407753619,1772760632185,-209.08912472,0.00018038,2]
[407753620,1772760632194,-173.85150212,0.00018038,2]
[407753621,1772760632204,-500.0,0.00018038,2]
[407753622,1772760632214,-308.59915633,0.00018038,2]
[407753623,1772760632223,-160.87370179,0.00018038,2]
[407753624,1772760632232,-1036.47008289,0.00018038,5]
[407753625,1772760632241,-299.99,0.00018038,4]
[407753626,1772760632251,-150.99,0.00018038,2]
[407753627,1772760632260,-29999.99,0.00018039,2]
[407753628,1772760632269,-538367.52155511,0.00018039,2]
[407753629,1772760632282,-195952.64438592,0.00018039,2]
[407753630,1772760632293,-250805.4801113,0.00018039,2]
[407753631,1772760632305,-362911.60036903,0.00018039,2]
[407753632,1772760632317,-1254.41808677,0.00018039,2]
[407753633,1772760632328,-495.19096835,0.00018039,2]
[407753634,1772760632339,-3710.00000002,0.00018039,2]
[407753635,1772760632354,-258.87161287,0.00018039,2]
[407753636,1772760632365,-2457.11209721,0.00018039,2]
[407753643,1772760637790,-243.26177287,0.00017939,2]
[407753644,1772760637799,-18714.02582521,0.00018039,2]
[407753645,1772760637810,-1257.35773974,0.00018039,2]
[407753646,1772760637821,-2667.47019877,0.00018039,2]
[407753647,1772760637832,-6265.86339098,0.00018039,2]
[407753648,1772760637843,-3778.15305323,0.00018039,2]
[407753649,1772760637854,-528.88472888,0.00018039,2]
[407753650,1772760637865,-1110575.40587661,0.00018039,2]
[407753651,1772760637875,-487.0,0.00018039,2]
[407753652,1772760637885,-487.0,0.00018039,2]
[407753653,1772760637895,-487.0,0.00018039,2]
[407753654,1772760637904,-487.0,0.00018039,2]
[407753655,1772760637914,-487.0,0.00018039,2]
[407753656,1772760637923,-487.0,0.00018039,2]
[407753657,1772760637932,-487.0,0.00018039,2]
[407753658,1772760637941,-487.0,0.00018039,2]
[407753665,1772760638335,-824.39,0.00018039,2]
[407753666,1772760638345,-166.66,0.000181,2]
[407753667,1772760638356,-1000.0,0.00018136,2]
[407753668,1772760638365,-152.0,0.00018144,6]
[407753669,1772760638375,-269.76474234,0.00018157,2]
[407753670,1772760638385,-200.17,0.00018161,2]
[407753671,1772760638394,-200.0,0.0001817,2]
[407753672,1772760638404,-1322.15435654,0.00018193,2]
[407753673,1772760638413,-449.78,0.00018251,2]
[407753674,1772760638426,-243.26177284,0.00018331,2]
[407753675,1772760638435,-152.0,0.00018352,7]
[407753676,1772760638444,-900.0,0.00018356,7]
[407753677,1772760638456,-500.0,0.00018356,7]
[407753678,1772760638465,-500.0,0.00018356,7]
[407753679,1772760638475,-269.76474234,0.00018375,2]
[407753680,1772760638488,-846.0,0.000184,2]
[407753681,1772760638498,-1000.0,0.00018424,2]
[407753682,1772760638509,-160.85014312,0.00018429,2]
[407753683,1772760638519,-500.0,0.00018438,2]
[407753684,1772760638532,-1798.87,0.00018473,2]
[407753685,1772760638541,-152.0,0.0001856,8]
[407753686,1772760638552,-269.76474234,0.00018593,2]
[407753687,1772760638560,-243.26177284,0.00018723,2]
[407753688,1772760638570,-152.0,0.00018768,9]
[407753689,1772760638579,-269.76474234,0.00018811,2]
[407753690,1772760638588,-189.91,0.00018919,2]
[407753691,1772760638597,-160.85014312,0.0001892,2]
[407753692,1772760638606,-1798.87,0.00018935,2]
[407753693,1772760638615,-152.0,0.00018976,10]
[407753694,1772760638623,-500.0,0.00018999,2]
[407753695,1772760638633,-275.3885982,0.00018999,2]
[407753696,1772760638642,-500.0,0.00018999,2]
[407753697,1772760638651,-500.0,0.00018999,2]
[407753698,1772760638661,-500.0,0.00018999,2]
[407753699,1772760638670,-500.0,0.00018999,2]
[407753700,1772760638679,-500.0,0.00018999,2]
[407753701,1772760638689,-174.61919141,0.00018999,2]
[407753702,1772760638698,-500.0,0.00018999,2]
[407753703,1772760638707,-500.0,0.00018999,2]
[407753704,1772760638716,-500.0,0.00018999,2]
[407753705,1772760638725,-500.0,0.00018999,2]
[407753706,1772760638733,-500.0,0.00018999,2]
[407753707,1772760638744,-151.0,0.00018999,2]
[407753708,1772760638753,-1000.0,0.00018999,2]
[407753709,1772760638763,-693.3919763,0.00018999,2]
[407753710,1772760638772,-500.0,0.00018999,2]
[407753711,1772760638781,-262.90206542,0.00018999,2]
[407753712,1772760638791,-364.83048626,0.00018999,2]
[407753713,1772760638799,-11088.17270214,0.00019,2]
[407753714,1772760638810,-269.76474234,0.00019028,2]
[407753715,1772760638819,-719.04747942,0.00019054,2]
[407753716,1772760638828,-745.65223616,0.00019109,2]
[407753717,1772760638838,-243.26177284,0.00019116,2]
[407753718,1772760638847,-500.0,0.00019123,2]
[407753719,1772760638856,-1036.4700829,0.00019163,5]
[407753720,1772760638872,-449.78,0.00019163,2]
[407753721,1772760638882,-773.2413689,0.00019164,2]
[407753722,1772760638892,-200.17,0.0001917,2]
[407753723,1772760638901,-152.0,0.00019184,11]
[407753724,1772760638911,-801.85129955,0.00019219,2]
[407753725,1772760638921,-269.76474234,0.00019246,2]
[407753726,1772760638931,-1278.0,0.00019267,2]
[407753727,1772760638940,-150.0,0.00019267,2]
[407753728,1772760638950,-1212.621,0.00019267,2]
[407753729,1772760638959,-921.0,0.00019267,2]
[407753730,1772760638969,-2459.0,0.00019267,2]
[407753731,1772760638979,-3518.111,0.00019267,2]
[407753732,1772760638989,-831.51979763,0.00019274,2]
[407753733,1772760638998,-1000.0,0.00019294,2]
[407753734,1772760639009,-1053.9,0.00019306,2]
[407753735,1772760639019,-862.28603014,0.00019329,2]
[407753736,1772760639029,-894.19061326,0.00019384,2]
[407753737,1772760639039,-152.0,0.00019393,12]
[407753738,1772760639049,-1798.87,0.00019397,2]
[407753739,1772760639059,-160.85014312,0.0001941,2]
[407753740,1772760639068,-927.27566595,0.00019439,2]
[407753741,1772760639078,-900.0,0.00019452,7]
[407753742,1772760639087,-500.0,0.00019452,7]
[407753743,1772760639097,-172.70211477,0.00019456,2]
[407753744,1772760639106,-160.0,0.00019456,2]
[407753745,1772760639116,-269.76474234,0.00019464,2]
[407753746,1772760639126,-1600.0,0.00019468,2]
[407753747,1772760639136,-961.58486559,0.00019494,2]
[407753748,1772760639146,-243.26177284,0.00019508,2]
[407753749,1772760639155,-174.61919142,0.00019547,2]
[407753750,1772760639165,-1000.0,0.00019547,2]
[407753751,1772760639175,-997.16350561,0.00019549,2]
[407753752,1772760639184,-225.16,0.00019567,2]
[407753753,1772760639194,-1000.0,0.00019568,2]
[407753754,1772760639204,-500.0,0.00019589,2]
[407753755,1772760639214,-500.0,0.00019589,2]
[407753756,1772760639225,-500.0,0.00019589,2]
[407753757,1772760639234,-500.0,0.00019589,2]
[407753758,1772760639244,-550.57696841,0.00019589,2]
[407753759,1772760639256,-178.44317206,0.00019589,2]
[407753760,1772760639266,-223.30842642,0.000196,2]
[407753761,1772760639276,-152.0,0.00019601,13]
[407753762,1772760639286,-172.05746804,0.00019604,2]
[407753763,1772760639296,-240.88045526,0.00019604,7]
[407753764,1772760639307,-420.0,0.00019654,2]
[407753765,1772760639316,-269.76474234,0.00019682,2]
[407753766,1772760639326,-1151.0,0.00019751,2]
[407753767,1772760639337,-532.74,0.0001979,2]
[407753768,1772760639347,-152.0,0.00019809,14]
[407753769,1772760639357,-1000.0,0.00019842,2]
[407753770,1772760639366,-1798.87,0.00019859,2]
[407753771,1772760639375,-882.405446,0.00019881,2]
[407753772,1772760639384,-375.82899881,0.000199,2]
[407753773,1772760639394,-7851.1692,0.000199,2]
[407753774,1772760639405,-259.13641796,0.000199,5]
[407753775,1772760639414,-474.37788808,0.000199,5]
[407753776,1772760639424,-435.76724753,0.000199,5]
[407753777,1772760639434,-498.90679779,0.000199,5]
[407753778,1772760639444,-25000.0,0.000199,3]
[407753779,1772760639453,-160.85014312,0.000199,2]
[407753780,1772760639465,-25000.0,0.000199,3]
[407753781,1772760639484,-269.76474234,0.000199,2]
[407753782,1772760639499,-375.82899881,0.000199,2]
[407753783,1772760639509,-243.26177284,0.000199,2]
[407753784,1772760639520,-1536.0,0.000199,2]
[407753785,1772760639529,-1437.0,0.000199,2]
[407753786,1772760639540,-500.0,0.00019973,2]
[407753787,1772760639550,-500.0,0.00019973,2]
[407753788,1772760639559,-500.23771365,0.00019973,2]
[407753789,1772760639569,-500.0,0.00019973,2]
[407753790,1772760639579,-500.0,0.00019973,2]
[407753791,1772760639588,-500.0,0.00019973,2]
[407753792,1772760639598,-500.0,0.00019973,2]
[407753793,1772760639608,-500.0,0.00019973,2]
[407753794,1772760639617,-500.0,0.00019973,2]
[407753795,1772760639631,-500.0,0.00019973,2]
[407753796,1772760639640,-229.70799363,0.00019973,2]
[407753797,1772760639650,-545.99891854,0.00019973,2]
[407753798,1772760639660,-547.8558944,0.00019973,2]
[407753799,1772760639669,-500.0,0.00019973,2]
[407753800,1772760639679,-500.0,0.00019973,2]
[407753801,1772760639688,-500.0,0.00019973,2]
[407753802,1772760639699,-500.0,0.00019973,2]
[407753803,1772760639709,-500.0,0.00019973,2]
[407753804,1772760639718,-168.95144707,0.00019973,2]
[407753805,1772760639728,-510.83155998,0.00019973,2]
[407753806,1772760639738,-500.0,0.00019973,2]
[407753807,1772760639747,-500.0,0.00019973,2]
[407753808,1772760639757,-500.0,0.00019973,2]
[407753809,1772760639766,-500.0,0.00019973,2]
[407753810,1772760639776,-500.0,0.00019973,2]
[407753811,1772760639786,-500.0,0.00019973,2]
[407753812,1772760639795,-500.0,0.00019973,2]
[407753813,1772760639805,-500.0,0.00019973,2]
[407753814,1772760639814,-500.0,0.00019973,2]
[407753815,1772760639828,-163.27,0.00019973,2]
[407753816,1772760639838,-188.92263895,0.0001999,2]
[407753817,1772760639847,-151.0,0.00019997,2]
[407753818,1772760639857,-1760.7733668,0.00019999,2]
[407753819,1772760639867,-176.8309186,0.00019999,2]
[407753820,1772760639876,-52213.4238239,0.00019999,2]
[407753821,1772760639886,-139406.9406071,0.00019999,2]
[407753822,1772760639895,-3383.2993872,0.00019999,2]
[407753823,1772760639905,-150.0,0.00019999,2]
[407753824,1772760639915,-158.28311974,0.00019999,2]
[407753825,1772760639924,-1439706.41665169,0.0002,2]
[407753827,1772760640780,-159.40402043,0.00017939,2]
[407753828,1772760640790,-860.23808632,0.00019267,2]
[407753829,1772760640816,-181.76191368,0.00019267,2]
[407753830,1772760640824,-3145.60308637,0.0002,2]
[407753831,1772760640835,-972.54685631,0.0002,2]
[407753832,1772760640846,-6600.50259506,0.0002,2]
[407753833,1772760640857,-4734.53429702,0.0002,2]
[407753840,1772760642785,-72209.20913979,0.0002,2]
[407753841,1772760642851,-5939.4617268,0.0002,2]
[407753842,1772760642863,-1372.07227333,0.0002,2]
[407753843,1772760642873,-527.94767224,0.0002,2]
[407753844,1772760642922,-647.09886504,0.0002,2]
[407753846,1772760644598,-159.40402043,0.0001892,2]
[407753847,1772760644608,-248.268021,0.0002,2]
[407753850,1772760645566,-63124.09869382,0.0002,2]
[407753851,1772760645578,-450.69199294,0.0002,2]
[407753852,1772760645589,-523.49586585,0.0002,2]
[407753853,1772760645601,-416.30793719,0.0002,2]
[407753854,1772760645612,-3165.45,0.0002,2]
[407753855,1772760645669,-927.3447352,0.0002,2]
[407753856,1772760645697,-444.3641403,0.0002,2]
[407753857,1772760645708,-474.356646,0.0002,2]
[407753858,1772760645726,-328.00953762,0.0002,2]
[407753859,1772760645737,-686.69924265,0.0002,2]
[407753860,1772760645749,-21161.22766997,0.0002,2]
[407753861,1772760645834,-666.0,0.0002,2]
[407753863,1772760645846,-354.70923108,0.0002,2]
[407753867,1772760679968,-10000.0,0.00017939,2]
[407753868,1772760680770,-10000.0,0.00017939,2]
[407753869,1772760681219,-10000.0,0.00017939,2]
[407753870,1772760681723,-10000.0,0.00017939,2]
[407753871,1772760682205,-10000.0,0.00017939,2]
[407753872,1772760682612,-10000.0,0.00017939,2]
[407753873,1772760684908,-10000.0,0.00017939,2]
[407753874,1772760684945,-10000.0,0.00017939,2]
[407753875,1772760685107,-10000.0,0.00017939,2]
[407753876,1772760685432,-10000.0,0.00017939,2]
[407753877,1772760686142,-10000.0,0.00017939,2]
[407753878,1772760686620,-10000.0,0.00017939,2]
[407753879,1772760687152,-10000.0,0.00017939,2]
[407753880,1772760687639,-10000.0,0.00017939,2]
[407753881,1772760688067,-10000.0,0.00017939,2]
[407753882,1772760688527,-10000.0,0.00017939,2]
[407753883,1772760694711,-178.56533112,0.0001758,2]
[407753884,1772760694732,-1391.726,0.0001758,2]
[407753885,1772760694755,-8429.70866888,0.00017939,2]
[407753886,1772760695686,-10000.0,0.00017939,2]
[407753887,1772760695714,-10000.0,0.00017939,2]
[407753888,1772760696158,-10000.0,0.00017939,2]
[407753889,1772760696587,-10000.0,0.00017939,2]
[407753890,1772760697016,-10000.0,0.00017939,2]
[407753891,1772760697460,-10000.0,0.00017939,2]
[407753892,1772760697910,-10000.0,0.00017939,2]
[407753893,1772760698562,-10000.0,0.00017939,2]
[407753894,1772760698622,-10000.0,0.00017939,2]
[407753895,1772760699140,-10000.0,0.00017939,2]
[407753896,1772760699738,-10000.0,0.00017939,2]
[407753897,1772760700230,-10000.0,0.00017939,2]
[407753898,1772760700593,-10000.0,0.00017939,2]
[407753899,1772760701083,-10000.0,0.00017939,2]
[407753900,1772760706604,-10000.0,0.00017939,2]
[407753901,1772760707423,-10000.0,0.00017939,2]
[407753902,1772760708507,-10000.0,0.00017939,2]
[407753903,1772760709301,-150.82,0.0001679,2]
[407753904,1772760709325,-9849.18,0.00017939,2]
[407753905,1772760709625,-150.82,0.0001706,2]
[407753906,1772760709650,-9849.18,0.00017939,2]
[407753907,1772760710096,-10000.0,0.00017939,2]
[407753908,1772760710430,-150.82,0.0001733,2]
[407753909,1772760710454,-9849.18,0.00017939,2]
[407753910,1772760710886,-150.82,0.000176,2]
[407753911,1772760710908,-322.63095557,0.00017839,2]
[407753912,1772760710938,-9526.54904443,0.00017939,2]
[407753913,1772760712361,-150.82,0.0001787,2]
[407753914,1772760712384,-9849.18,0.00017939,2]
[407753917,1772760912083,-156.62,0.0001679,2]
[407753918,1772760912109,-156.62,0.0001706,2]
[407753919,1772760912136,-156.62,0.0001733,2]
[407753920,1772760912164,-156.62,0.000176,2]
[407753921,1772760912194,-3240.0,0.00017603,2]
[407753922,1772760912221,-160.0,0.00017836,2]
[407753923,1772760912250,-300.0,0.00017838,2]
[407753924,1772760912275,-1200.0,0.00017838,2]
[407753925,1772760912302,-1620.72356436,0.00017839,2]
[407753926,1772760912334,-470.72319665,0.00017839,2]
[407753927,1772760912382,-268.85912965,0.00017839,2]
[407753928,1772760912415,-156.62,0.0001787,2]
[407753929,1772760912448,-500.0,0.00017938,2]
[407753930,1772760912482,-537.55411104,0.00017938,2]
[407753931,1772760912512,-570.29353454,0.00017938,2]
[407753932,1772760912538,-500.0,0.00017938,2]
[407753933,1772760912563,-207.64995993,0.00017938,2]
[407753934,1772760912591,-1047.31860186,0.00017938,5]
[407753935,1772760912620,-13432.77790197,0.00017939,2]
[407753937,1772761266146,172.42,0.00013798,2]
[407753938,1772761405059,3083.33,0.0001,2]
[407753940,1772761534074,1386.49,0.000151,30]
[407753941,1772761631096,-150.29,0.0001679,2]
[407753942,1772761631116,-302.08963945,0.000169,2]
[407753943,1772761631137,-386.32039848,0.00016924,2]
[407753945,1772761720675,1726.0,0.0001629,2]
[407753946,1772761773132,-156.49,0.0001679,2]
[407753947,1772761773159,-250.0,0.0001681,2]
[407753948,1772761773184,-2500.0,0.0001681,2]
[407753949,1772761773209,-5000.0,0.0001681,2]
[407753950,1772761773235,-294.79,0.0001683,2]
[407753951,1772761773260,-150.0,0.00016849,2]
[407753952,1772761773286,-2500.0,0.00016879,2]
[407753953,1772761773311,-2500.0,0.00016879,2]
[407753954,1772761773335,-2181.57488823,0.00016879,2]
[407753955,1772761773362,-304.60724979,0.00016879,2]
[407753956,1772761773388,-813.67960152,0.00016924,2]
[407753957,1772761773415,-300.0,0.00016924,2]
[407753958,1772761773439,-3880.27233267,0.00017,30]
[407753959,1772761773467,-156.49,0.0001706,2]
[407753960,1772761773492,-928.12246962,0.00017324,2]
[407753961,1772761773518,-156.49,0.0001733,2]
[407753962,1772761773543,-300.0,0.00017417,2]
[407753963,1772761773569,-152.0,0.00017418,3]
[407753964,1772761773593,-152.0,0.00017524,4]
[407753965,1772761773618,-4028.36109686,0.00017531,2]
[407753966,1772761773642,-224.0492747,0.00017531,2]
[407753967,1772761773669,-156.49,0.000176,2]
[407753968,1772761773696,-399.20547418,0.00017627,2]
[407753969,1772761773729,-182515.37761243,0.00017628,2]
[407753970,1772761779353,10000.0,0.00017,120]
[407753971,1772761789136,10000.0,0.00017,120]
[407753972,1772761814085,1208.4,0.00017,120]
[407753988,1772761832549,-471.84604647,0.00017531,2]
[407753989,1772761832560,-654.46728473,0.00017531,2]
[407753990,1772761832570,-188.92263895,0.00017618,2]
[407753991,1772761832579,-300.0,0.00017627,2]
[407753992,1772761832588,-252.02572168,0.00017627,2]
[407753993,1772761832599,-947.97427832,0.00017627,2]
[407753994,1772761832608,-242.45158818,0.00017628,2]
[407753995,1772761832622,-250.0,0.00017628,2]
[407753996,1772761832664,-333902.19424086,0.00017628,2]
[407753997,1772761832675,-3058.63601826,0.00017628,2]
[407753998,1772761832685,-3600.42431067,0.00017628,2]
[407753999,1772761832697,-818.42572312,0.00017628,2]
[407754000,1772761832716,-611.5607116,0.00017628,2]
[407754001,1772761832727,-393.653476,0.00017628,2]
[407754011,1772761838271,-10058.27556039,0.00017628,2]
[407754012,1772761838287,-612.11841323,0.00017628,2]
[407754013,1772761838305,-7349.70995999,0.00017628,2]
[407754014,1772761838320,-1956587.17238527,0.00017628,2]
[407754015,1772761838330,-14098.7203,0.00017628,2]
[407754016,1772761838339,-2500.0,0.00017628,2]
[407754017,1772761838348,-487.0,0.00017628,2]